Workbook

Sheet ввод
A1: https://yandex.ru/maps/?from=tabbar&ll=38.303332%2C55.191553&mode=routes&rtext=55.053732%2C38.873363&rtt=auto&ruri=ymapsbm1%3A%2F%2Fgeo%3Fll%3D38.873%252C55.054%26spn%3D0.001%252C0.001%26text%3D%25D0%25A0%25D0%25BE%25D1%2581%25D1%2581%25D0%25B8%25D1%258F% | AI1: Самовывоз | AJ1: Самовывоз (EXW) - г. Коломна.
B2: Заказчик | D2: Мпрайд, ООО | M2: Сумма КП с листа ВЫВОД: | P2: Всего поставка: | R2: =Вывод!N6 ->  | AI2: Доставка | AJ2: ="Доставка до адреса (DDP) - "&D6 -> Доставка до адреса (DDP) - г. Москва, р-н Черемушки
B3: ФИО | D3: Александр | M3: =Вывод!N11 ->  | P3: Скидка: | S3: =$AN$10 ->  | AI3: Доставка до терминала "Деловые линии" | AJ3: Доставка до терминала ТК "Деловые Линии" (DAT) - г. Коломна.
B4: Телефон | D4: 7 (926) 161-96-41 | M4: Сумма спецификации: | P4: Итого со скидкой: | R4: =Вывод!N8 ->  | T4: Ручной ввод
B5: Email | D5: at@mpride.ru | M5: =Спецификация!I14 ->  | P5: Доставка: | R5: =IF(T5<>0,T5,IF(AF5=2,AG5*IF(D7>100,IF(D7*70<10500,10500,D7*70)*1.1,IF(D7*70<10500,10500,D7*70)),0)) -> 16170 | AF5: 2 | AG5: =ROUNDUP((B9/3),0) -> 1
B6: Адрес | D6: г. Москва, р-н Черемушки | P6: Монтаж: | Q6: Ночь: | R6: =IF(T6<>0,T6,IF(AF6=TRUE,SUM(V11:V15)*1.1,SUM(V11:V15))) ->  | AF6: FALSE
B7: Расстояние | D7: 210 | P7: Итог: | R7: =R4+R5+R6 -> 
A9: =COUNTIF(B11:B9999,">0")-1 -> 0 | B9: =SUM(B11:B915) -> 1 | I9: Всего за шторы: | M9: Всего за блоки: | Q9: Всего за ДОП: | AF9: Покраска | AG9: Ключ-Кнопка | AH9: GU-4 | AI9: Общая скидка на изделие | AJ9: Стоиомсть изделия со скидкой | AK9: Стоиомсть блока со скидкой | AL9: Стоиомсть ДОП всегда без скидки | AM9: Стоиомсть всего со скидкой | AN9: Всего Скидки | AP9: N-AES | AQ9: N-AES-PP | AR9: N-AES-T | AS9: N-AES-T-PP | AT9: SWM | AU9: GU4
A10: № | B10: Кол во | C10: Ширина | D10: Высота | E10: Покраска | F10: RAL | G10: Ширина | H10: Высота | I10: Тип шторы | J10: Стоимость | K10: Лазейка | L10: Направляющие | M10: Блок управления | N10: Ключ кнопка | O10: GU4 | P10: Стоимость блока | Q10: Лазейка | R10: Кнопка+GU4 | S10: Направляющие | U10: S | V10: Монтаж | W10: EI60 | X10: EI90 | Y10: EI120 | Z10: EI120 с водой | AA10: EI120 с водой PREMIUM | AB10: E120 ДЗШ | AC10: лазейка | AD10: Рассчет ширины | AE10: Расчет Высоты | AI10: =SUM(AI11:AI15) ->  | AK10: 5000 | AL10: 0 | AP10: =SUM(AP11:AP915) -> 1 | AQ10: 0 | AR10: 0 | AS10: 0 | AT10: 0 | AU10: 0
A11: 1 | B11: 1 | C11: 3500 | D11: 3500 | G11: =#REF! ->  | H11: =#REF! ->  | I11: FireTechnics-EI 60 (без орошения) | J11: 13 | L11: =IF(#REF!=6,"Нет","") ->  | M11: Блок управления N-AES | N11: Нет | O11: Нет | P11: =IF(M11<>0,VLOOKUP(M11,автоматика!$O$3:$S$6,5,0),0) -> 5000 | Q11: =IF(K11="Да",15000,0) -> 0 | R11: =IF(N11="Да",3200,0)+IF(AH11=TRUE,ROUNDUP(B11/4,0)*2000/B11,0) -> 0 | S11: =IF(AND(#REF!=6,ввод!L11="Да"),ввод!D11*2*900/1000,0) ->  | U11: =C11*D11/1000000 -> 12.25 | V11: =IF(AND(#REF!=5,J11<>0),IF(U11<=40,65000*B11,IF(U11<=70,100000*B11,160000*B11)),IF(U11<=10,32000*B11,IF(U11<=20,36000*B11,42000*B11))-IF(#REF!=6,2000,0)) ->  | W11: 123 | X11: =IF(B11<>0,INDEX(Д2,MATCH(AE11,Высота3,0),MATCH(AD11,Ширина3,0))*IF(AF11=TRUE,1.12,1),0) ->  | Y11: =IF(B11<>0,INDEX(Д3,MATCH(AE11,Высота3,0),MATCH(AD11,Ширина3,0))*IF(AF11=TRUE,1.12,1),0) ->  | Z11: =IF(B11<>0,INDEX(Д4,MATCH(AE11,Высота4,0),MATCH(AD11,Ширина4,0))*IF(AF11=TRUE,1.12,1),0) ->  | AA11: =IF(B11<>0,INDEX(Д5,MATCH(AE11,Высота5,0),MATCH(AD11,Ширина5,0))*IF(AF11=TRUE,1.12,1),0) ->  | AB11: =IF(B11<>0,INDEX(Д6,MATCH(AE11,Высота6,0),MATCH(AD11,Ширина6,0))*IF(AF11=TRUE,1.12,1),0) ->  | AC11: =IF(K11="Да",15000,0) -> 0 | AD11: =IF(B11<>0,IF(C11/MROUND(C11,500)>1,MROUND(C11,500)+500,MROUND(C11,500)),0) -> 3500 | AE11: =IF(B11<>0,IF(D11/MROUND(D11,500)>1,MROUND(D11,500)+500,MROUND(D11,500)),0) -> 3500 | AF11: =IF(E11="Да",TRUE,FALSE) -> FALSE | AG11: =IF(N11="Да",TRUE,FALSE) -> FALSE | AH11: =IF(O11="Да",TRUE,FALSE) -> FALSE | AI11: =IF(B11<>0,(J11+S11+Q11)*$R$3,0)+IF(M11<>0,P11*$R$3,0) ->  | AJ11: =IF(B11<>0,J11+S11+Q11,0)*(1-$R$3) ->  | AK11: =(IF(M11<>0,P11,0))*(1-$R$3) -> 5000 | AL11: =(IF(B11<>0,R11,0)) -> 0 | AM11: =SUM(AJ11:AL11)*B11 ->  | AN11: =AI11*B11 ->  | AP11: =IF($M11="Блок управления N-AES",$B11,0) -> 1 | AQ11: =IF($M11="Блок управления N-AES-PP (с ИБП)",$B11,0) -> 0 | AR11: =IF($M11="Блок управления N-AES-T",$B11,0) -> 0 | AS11: =IF($M11="Блок управления N-AES-T-PP (с ИБП)",$B11,0) -> 0 | AT11: =IF(N11="Да",B11,0) -> 0 | AU11: =IF(AH11=TRUE,ROUNDUP(B11/4,0),0) -> 0
A12: 2 | J12: =IF(B12<>0,IF(#REF!=1,ввод!W12,IF(#REF!=2,ввод!X12,IF(#REF!=3,Y12,IF(#REF!=4,Z12,IF(#REF!=5,AA12,IF(#REF!=6,AB12,0)))))),0) -> 0 | L12: =IF(#REF!=6,"Нет","") ->  | P12: =IF(M12<>0,VLOOKUP(M12,автоматика!$O$3:$S$6,5,0),0)+IF(AH12=TRUE,ROUNDUP(B12/4,0)*2000,0) -> 0 | Q12: =IF(K12="Да",15000,0) -> 0 | R12: =IF(N12="Да",3200,0)+IF(AH12=TRUE,ROUNDUP(B12/4,0)*2000,0) -> 0 | S12: =IF(AND(#REF!=6,ввод!L12="Да"),ввод!D12*2*900/1000,0) ->  | U12: 0 | V12: =IF(AND(#REF!=5,J12<>0),IF(U12<=40,65000*B12,IF(U12<=70,100000*B12,160000*B12)),IF(U12<=10,32000*B12,IF(U12<=20,36000*B12,42000*B12))-IF(#REF!=6,2000,0)) ->  | W12: =IF(B12<>0,INDEX(Д1,MATCH(AE12,Высота1,0),MATCH(AD12,Ширина1,0))*IF(AF12=TRUE,1.12,1),0) -> 0 | X12: 0 | Y12: 0 | Z12: 0 | AA12: 0 | AB12: 0 | AC12: 0 | AD12: 0 | AE12: 0 | AF12: =IF(E12="Да",TRUE,FALSE) -> FALSE | AG12: =IF(N12="Да",TRUE,FALSE) -> FALSE | AH12: =IF(O12="Да",TRUE,FALSE) -> FALSE | AI12: =IF(B12<>0,(J12+S12+Q12)*$R$3,0)+IF(M12<>0,P12*$R$3,0) -> 0 | AJ12: =IF(B12<>0,J12+S12+Q12,0)*(1-$R$3) -> 0 | AK12: =(IF(M12<>0,P12,0))*(1-$R$3) -> 0 | AL12: =(IF(B12<>0,R12,0)) -> 0 | AM12: =SUM(AJ12:AL12)*B12 -> 0 | AN12: =AI12*B12 -> 0 | AP12: =IF($M12="Блок управления N-AES",$B12,0) -> 0 | AQ12: =IF($M12="Блок управления N-AES-PP (с ИБП)",$B12,0) -> 0 | AR12: =IF($M12="Блок управления N-AES-T",$B12,0) -> 0 | AS12: =IF($M12="Блок управления N-AES-T-PP (с ИБП)",$B12,0) -> 0 | AT12: =IF(N12="Да",B12,0) -> 0 | AU12: =IF(AH12=TRUE,ROUNDUP(B12/4,0),0) -> 0
A13: 3 | J13: =IF(B13<>0,IF(#REF!=1,ввод!W13,IF(#REF!=2,ввод!X13,IF(#REF!=3,Y13,IF(#REF!=4,Z13,IF(#REF!=5,AA13,IF(#REF!=6,AB13,0)))))),0) -> 0 | L13: =IF(#REF!=6,"Нет","") ->  | P13: =IF(M13<>0,VLOOKUP(M13,автоматика!$O$3:$S$6,5,0),0)+IF(AH13=TRUE,ROUNDUP(B13/4,0)*2000,0) -> 0 | Q13: 0 | R13: 0 | S13: =IF(AND(#REF!=6,ввод!L13="Да"),ввод!D13*2*900/1000,0) ->  | U13: 0 | V13: =IF(AND(#REF!=5,J13<>0),IF(U13<=40,65000*B13,IF(U13<=70,100000*B13,160000*B13)),IF(U13<=10,32000*B13,IF(U13<=20,36000*B13,42000*B13))-IF(#REF!=6,2000,0)) ->  | W13: 0 | X13: 0 | Y13: 0 | Z13: 0 | AA13: 0 | AB13: 0 | AC13: 0 | AD13: 0 | AE13: 0 | AF13: FALSE | AG13: FALSE | AH13: FALSE | AI13: 0 | AJ13: 0 | AK13: 0 | AL13: 0 | AM13: 0 | AN13: 0 | AP13: 0 | AQ13: 0 | AR13: 0 | AS13: 0 | AT13: 0 | AU13: 0
A14: 4 | J14: =IF(B14<>0,IF(#REF!=1,ввод!W14,IF(#REF!=2,ввод!X14,IF(#REF!=3,Y14,IF(#REF!=4,Z14,IF(#REF!=5,AA14,IF(#REF!=6,AB14,0)))))),0) -> 0 | L14: =IF(#REF!=6,"Нет","") ->  | P14: =IF(M14<>0,VLOOKUP(M14,автоматика!$O$3:$S$6,5,0),0)+IF(AH14=TRUE,ROUNDUP(B14/4,0)/B14*2000,0) -> 0 | Q14: 0 | R14: 0 | S14: =IF(AND(#REF!=6,ввод!L14="Да"),ввод!D14*2*900/1000,0) ->  | U14: 0 | V14: =IF(AND(#REF!=5,J14<>0),IF(U14<=40,65000*B14,IF(U14<=70,100000*B14,160000*B14)),IF(U14<=10,32000*B14,IF(U14<=20,36000*B14,42000*B14))-IF(#REF!=6,2000,0)) ->  | W14: 0 | X14: 0 | Y14: 0 | Z14: 0 | AA14: 0 | AB14: 0 | AC14: 0 | AD14: 0 | AE14: 0 | AF14: FALSE | AG14: FALSE | AH14: FALSE | AI14: 0 | AJ14: 0 | AK14: 0 | AL14: 0 | AM14: 0 | AN14: 0 | AP14: 0 | AQ14: 0 | AR14: 0 | AS14: 0 | AT14: 0 | AU14: 0
A15: 5 | J15: =IF(B15<>0,IF(#REF!=1,ввод!W15,IF(#REF!=2,ввод!X15,IF(#REF!=3,Y15,IF(#REF!=4,Z15,IF(#REF!=5,AA15,IF(#REF!=6,AB15,0)))))),0) -> 0 | L15: =IF(#REF!=6,"Нет","") ->  | P15: =IF(M15<>0,VLOOKUP(M15,автоматика!$O$3:$S$6,5,0),0)+IF(AH15=TRUE,ROUNDUP(B15/4,0)*2000,0) -> 0 | Q15: 0 | R15: 0 | S15: =IF(AND(#REF!=6,ввод!L15="Да"),ввод!D15*2*900/1000,0) ->  | U15: 0 | V15: =IF(AND(#REF!=5,J15<>0),IF(U15<=40,65000*B15,IF(U15<=70,100000*B15,160000*B15)),IF(U15<=10,32000*B15,IF(U15<=20,36000*B15,42000*B15))-IF(#REF!=6,2000,0)) ->  | W15: 0 | X15: 0 | Y15: 0 | Z15: 0 | AA15: 0 | AB15: 0 | AC15: 0 | AD15: 0 | AE15: 0 | AF15: FALSE | AG15: FALSE | AH15: FALSE | AI15: 0 | AJ15: 0 | AK15: 0 | AL15: 0 | AM15: 0 | AN15: 0 | AP15: 0 | AQ15: 0 | AR15: 0 | AS15: 0 | AT15: 0 | AU15: 0

Sheet Вывод
A1: № | B1: Ширина проема | D1: Высота проема | E1: м² | F1: Поверхность | G1: Наименование | H1: Блок управления + Дополнительное оснащение | I1: Кол-во, | J1: Цена единицы | L1: Цена блока управления | M1: Цена доп. оснащения | N1: Общая сумма
B2: мм | D2: мм | I2: шт. | J2: Руб. | L2: Руб. | M2: Руб. | N2: Руб.
A3: 1 | B3: =ввод!C11 -> 3500 | C3: =#REF! ->  | D3: =ввод!D11 -> 3500 | E3: =(B3*D3*I3)/1000000 ->  | F3: =#REF! ->  | G3: =#REF! ->  | H3: =IF(I3<>0,"- "&VLOOKUP(ввод!M11,автоматика!$O$3:$T$6,6,0)&IF(ввод!AC11<>0,CHAR(10)&"- Дверь лазейка 500х2000 мм.","")&IF(ввод!AG11=TRUE,CHAR(10)&"- Двухпозиционная ключ-кнопка SWM","")&IF(ввод!AH11=TRUE,CHAR(10)&"- Модуль группового управления GU-4.РМ - "&ROUNDUP(I3/4,0)&" шт.","")&IF(ввод!L11="Да",CHAR(10)&"- Направляющие для полотна",""),"") ->  | I3: =IF(#REF!,ввод!B11,0) ->  | J3: =IF(ввод!B11<>0,ввод!J11+ввод!Q11+ввод!S11,0) ->  | L3: =IF(I3<>0,ввод!P11,0) ->  | M3: =IF(I3<>0,ввод!Q11+ввод!R11+ввод!S11,0) ->  | N3: =SUM(J3:M3)*I3 -> 
B4: Общая площадь проёмов | E4: =SUM(E3:OFFSET(E4,-1,0)) ->  | G4: Общее количество штор | I4: =SUM(I3:OFFSET(I4,-1,0)) -> 
A6: Общая сумма поставки, включая НДС 20% | N6: =SUM(N3:O4) -> 
A7: Скидка на изделия и блоки управления: | M7: =ввод!R3 -> 0 | N7: =ввод!$AN$10 -> 
G8: Общая сумма поставки, со скидкой, включая НДС 20% | N8: =N6-N7 -> 
A9: =OFFSET(A9,-6,0)+1 -> 2 | B9: =IF(ввод!AF5=1,ввод!AJ1,IF(ввод!AF5=2,ввод!AJ2,ввод!AJ3)) -> Доставка до адреса (DDP) - г. Москва, р-н Черемушки | N9: =IF(ввод!$T$5=0,ввод!$R$5,ввод!$T$5) -> 16170
A10: =OFFSET(A10,-1,0)+1 -> 3 | B10: Монтаж и ПНР штор на объекте Заказчика | N10: =IF(ввод!$T$6=0,ввод!$R$6,ввод!$T$6) -> 
A11: Итоговая сумма предложения, включая НДС 20% | N11: =N8+N9+N10 -> 

Sheet автоматика (hidden)
I1: 1 | J1: 2 | K1: 3 | L1: 4 | M1: 5 | N1: 6 | O1: 7 | P1: 0.08 | Q1: 9 | R1: 10 | S1: 11
K2: дилер | L2: розница | M2: вывод
B3: 1 | H3: 1 | I3: Блок управления N-AES (необходимо наличие на объекте 1-ой категории электропитания) | K3: 5000 | L3: 5000 | M3: 5000 | O3: Блок управления N-AES | S3: 5000 | T3: =I3 -> Блок управления N-AES (необходимо наличие на объекте 1-ой категории электропитания) | U3: Блок управления N-AES (децимальный номер ФАТЕ.954786.014)
H4: 2 | I4: Блок управления N-AES-T (необходимо наличие на объекте 1-ой категории электропитания) | K4: 6800 | L4: 6800 | M4: =IF(#REF!,L4,K4) ->  | O4: Блок управления N-AES-PP (с ИБП) | S4: 14000 | T4: =I5 -> Блок управления N-AES-PP (встроен ИБП, не требует наличие 1-ой категории электропитания) | U4: Блок управления N-AES-PP (децимальный номер ФАТЕ.954786.017)
H5: 3 | I5: Блок управления N-AES-PP (встроен ИБП, не требует наличие 1-ой категории электропитания) | K5: 14000 | L5: 14000 | M5: =IF(#REF!,L5,K5) ->  | O5: Блок управления N-AES-T | S5: 6800 | T5: =I4 -> Блок управления N-AES-T (необходимо наличие на объекте 1-ой категории электропитания) | U5: Блок управления N-AES-T (децимальный номер ФАТЕ.954786.025)
H6: 4 | I6: Блок управления N-AES-T-PP (встроен ИБП, не требует наличие 1-ой категории электропитания) | K6: 15000 | L6: 15000 | M6: =IF(#REF!,L6,K6) ->  | O6: Блок управления N-AES-T-PP (с ИБП) | S6: 15000 | T6: =I6 -> Блок управления N-AES-T-PP (встроен ИБП, не требует наличие 1-ой категории электропитания) | U6: Блок управления N-AES-T-PP (децимальный номер ФАТЕ.954786.028)
H7: 5 | K7: 15000 | L7: 15000 | M7: =IF(#REF!,L7,K7) -> 
H8: 6 | I8: Дверь-лазейка | K8: 3200 | L8: 3200 | M8: 3200 | S8: Список3 | T8: Список4 | U8: Список6
H9: 7 | I9: Двухпозиционная ключ-кнопка SWM | K9: 700 | L9: 700 | M9: 700 | S9: Да | T9: Нельзя | U9: Да
H10: 8 | I10: Извещатель пожарный ручной ИПР-3СУ | M10: =IF(#REF!,L10,K10) ->  | S10: Нет
H11: 9 | M11: =IF(#REF!,L11,K11) -> 
H12: 10 | M12: =IF(#REF!,L12,K12) -> 
H13: 12 | M13: =IF(#REF!,L13,K13) -> 
H14: 13 | M14: =IF(#REF!,L14,K14) -> 
H15: 14 | M15: =IF(#REF!,L15,K15) ->  | O15: 1 | P15: Рулонные противопожарные ворота (Шторы) торговой марки "FireTechnics" модели "FireTechnics-EI60", с полотном из негорючих материалов. Предел огнестойкости EI60 (без орошения) | Q15: Рулонные противопожарные ворота (Шторы) торговой марки "FireTechnics" модели "FireTechnics-EI60", с полотном из негорючих материалов. Предел огнестойкости EI60 (без орошения)
H16: 15 | M16: =IF(#REF!,L16,K16) ->  | O16: 2 | P16: Противопожарная автоматическая преграда (штора, экран, занавес) системы "FireTechnics-EI90". Предел огнестойкости EI 90 (без орошения) | Q16: Противопожарная автоматическая преграда (штора, экран, занавес) системы "FireTechnics-EI90". Предел огнестойкости EI 90 (без орошения)
H17: 16 | M17: =IF(#REF!,L17,K17) ->  | O17: 3 | P17: Противопожарная автоматическая преграда (штора, экран, занавес) системы "FireTechnics-EI120". Предел огнестойкости EI 120 (без орошения) | Q17: Противопожарная автоматическая преграда (штора, экран, занавес) системы "FireTechnics-EI120". Предел огнестойкости EI 120 (без орошения)
H18: 17 | O18: 4 | P18: Противопожарная автоматическая штора (экран, занавес) системы "Fireshield" без дверь-лазейки, с односторонним использованием водяного орошения от существующих спринклерных или дренчерных систем пожаротушения здания (расход воды не менее 0,08 л/м.кв в сек). Предел огнестойкости EI 120 | Q18: Противопожарная автоматическая штора (экран, занавес) системы "Fireshield", с дверью-лазейкой, с односторонним использованием водяного орошения от существующих спринклерных или дренчерных систем пожаротушения здания (расход воды не менее 0,08 л/м.кв в сек). Предел огнестойкости EI 120
H19: 18 | M19: =IF(#REF!,L19,K19) ->  | O19: 5 | P19: Противопожарная автоматическая штора (экран, занавес) системы "Fireshield" без двери-лазейки, с односторонним использованием водяного орошения от существующих спринклерных или дренчерных систем пожаротушения здания (расход воды не менее 0,08 л/м.кв в сек). Предел огнестойкости EI 120 | Q19: Противопожарная автоматическая штора (экран, занавес) системы "Fireshield", с дверью-лазейкой, с односторонним использованием водяного орошения от существующих спринклерных или дренчерных систем пожаротушения здания (расход воды не менее 0,08 л/м.кв в сек). Предел огнестойкости EI 120
H20: 19 | M20: =IF(#REF!,L20,K20) ->  | O20: 6 | P20: Дымозащитная автоматическая штора (экран, занавес) типа "Fireshield", без направляющих. Предел огнестойкости E 120 | Q20: Дымозащитная автоматическая штора (экран, занавес) типа "Fireshield", с направляющими. Предел огнестойкости E 120
H21: 20 | M21: =IF(#REF!,L21,K21) -> 
H22: 21 | M22: =IF(#REF!,L22,K22) -> 
H23: 22 | M23: =IF(#REF!,L23,K23) -> 
H24: 23 | M24: =IF(#REF!,L24,K24) -> 
H25: 24 | M25: =IF(#REF!,L25,K25) -> 
K28: дилер | L28: розница | M28: вывод
H29: 25 | I29: Дверь-лазейка | K29: 15000 | L29: 15000 | M29: =IF([2]техническая!$E$51,L29,K29) -> 15000

Sheet Спецификация
D3: № п/п | E3: Наименование Изделий, работ | F3: Единица измерения | G3: Кол-во | H3: Цена, руб., в т.ч. НДС 20% | I3: Общая стоимость, руб., с учетом НДС 20% | K3: НДС | L3: НДС общий
D4: 1 | E4: =IF(OR(ввод!K11="Да",ввод!L11="Да"),VLOOKUP(#REF!,автоматика!$O$15:$S$20,3,0),VLOOKUP(#REF!,автоматика!$O$15:$S$20,2,0))&"."&CHAR(10)&"Размер проёма: "&ввод!C11&"x"&ввод!D11&" (ШхВ, мм.)"&CHAR(10)&#REF!&"." ->  | F4: Шт. | G4: =ввод!B11 -> 1 | H4: =ввод!AJ11 ->  | I4: =H4*G4 ->  | K4: =ввод!AJ11/120*20 ->  | L4: =G4*K4 -> 
A5: Вставить необходимое кол-во ячекк и протянуть всю строчку | E5: Блок управления N-AES (децимальный номер ФАТЕ.954786.014) | F5: Шт. | G5: =ввод!$AP$10 -> 1 | H5: =5000*(1-ввод!$R$3) -> 5000 | I5: =H5*G5 -> 5000 | K5: =H5/120*20 -> 833.3333333 | L5: =G5*K5 -> 833.3333333
A6: Удалить нулевые строчки | E6: Блок управления N-AES-PP (децимальный номер ФАТЕ.954786.017) | F6: Шт. | G6: =ввод!$AQ$10 -> 0 | H6: =14000*(1-ввод!$R$3) -> 14000 | I6: 0 | K6: =H6/120*20 -> 2333.333333 | L6: 0
E7: Блок управления N-AES-T (децимальный номер ФАТЕ.954786.025) | F7: Шт. | G7: =ввод!$AR$10 -> 0 | H7: =6800*(1-ввод!$R$3) -> 6800 | I7: 0 | K7: 1133.333333 | L7: 0
E8: Блок управления N-AES-T-PP (децимальный номер ФАТЕ.954786.028) | F8: Шт. | G8: =ввод!$AS$10 -> 0 | H8: =15000*(1-ввод!$R$3) -> 15000 | I8: 0 | K8: 2500 | L8: 0
E9: Двухпозиционная ключ-кнопка SWM | F9: Шт. | G9: =ввод!$AT$10 -> 0 | H9: =3200 -> 3200 | I9: =H9*G9 -> 0 | K9: =H9/120*20 -> 533.3333333 | L9: =G9*K9 -> 0
E10: Модуль группового управления GU-4.РМ | F10: Шт. | G10: =ввод!$AU$10 -> 0 | H10: =2000 -> 2000 | I10: 0 | K10: 333.3333333 | L10: 0
E11: Доставка до Объекта | F11: Шт. | G11: 1 | H11: =ввод!$R$5 -> 16170 | I11: =H11*G11 -> 16170 | K11: 2695 | L11: 2695
E12: Монтажные работы | F12: Шт. | G12: =ввод!$B$9 -> 1 | H12: =ввод!$R$6/ввод!$B$9*0.95 ->  | I12: =H12*G12 -> 
E13: Пусконаладка | F13: Шт. | G13: =ввод!$B$9 -> 1 | H13: =ввод!$R$6/ввод!$B$9*0.05 ->  | I13: =H13*G13 -> 
D14: Итого: | I14: =SUM(I4:I13) -> 
D15: В том числе НДС 20%: | I15: =SUM(L4:L14) -> 
